bitfinex-derivatives/quotes_ETHF0:USTF0_20241008
["timestamp","ask_amount","ask_price","bid_price","bid_amount"]
[1728363879569,1.8904,2437.0,2436.9,0.41041]
[1728363879771,1.48,2437.0,2436.9,0.41041]
[1728363880569,1.8904,2437.0,2436.9,0.41041]
[1728363882866,0.41042,2436.9,2436.8,0.41042]
[1728363883068,2.30092,2436.9,2436.8,0.41042]
[1728363885679,1.8905,2436.9,2436.8,0.41042]
[1728363885867,0.4105,2436.9,2436.8,0.41042]
[1728363886069,1.8905,2436.9,2436.8,0.41042]
[1728363889772,1.48,2436.9,2436.8,0.41042]
[1728363897669,1.89041,2436.9,2436.8,0.41042]
[1728363900172,2.29601,2436.9,2436.8,0.41042]
[1728363900378,2.68531,2436.9,2436.8,0.41042]
[1728363900987,2.2749,2436.9,2436.6,1.1816]
[1728363901284,1.20533,2436.9,2436.7,0.41044]
[1728363901577,1.20533,2436.9,2436.3,1.1699228]
[1728363901578,3.2078,2436.8,2436.3,0.096]
[1728363901781,3.2078,2436.8,2436.5,0.41048]
[1728363901977,0.41046,2436.6,2436.5,0.41048]
[1728363902178,0.41044,2436.8,2436.7,0.41044]
[1728363902379,1.89044,2436.8,2436.7,0.41044]
[1728363902681,1.89044,2436.8,2436.6,0.41045]
[1728363902883,1.48,2436.7,2436.6,0.41045]
[1728363903278,1.89045,2436.7,2436.6,0.41045]
[1728363904683,1.48,2436.7,2436.6,0.41045]
[1728363905484,1.89045,2436.7,2436.6,0.41045]
[1728363905684,1.48,2436.7,2436.2,0.096]
[1728363905874,1.48,2436.4,2436.3,0.41052]
[1728363906080,1.8905,2436.4,2436.3,0.41052]
[1728363906278,1.8905,2436.4,2436.2,0.41052]
[1728363906483,1.89052,2436.3,2436.2,0.82673]
[1728363906684,2.28372,2436.3,2436.2,0.4162]
[1728363907385,5.49152,2436.3,2436.2,0.4162]
[1728363907587,0.41053,2436.2,2436.1,0.3966]
[1728363907883,5.081,2436.3,2435.9,0.41057]
[1728363907884,0.41056,2436.1,2435.9,0.41057]
[1728363908088,1.48,2436.0,2435.9,0.41057]
[1728363908581,0.41058,2435.9,2435.8,1.1978]
[1728363908783,0.41058,2435.9,2435.8,0.7792]
[1728363908978,0.80588,2435.9,2435.8,0.3864]
[1728363909177,0.4106,2435.8,2435.7,3.2078]
[1728363909380,1.8906,2435.8,2435.7,3.2078]
[1728363909886,1.8906,2435.8,2435.7,3.61842]
[1728363910281,1.8906,2435.8,2435.7,3.2078]
[1728363910691,1.8906,2435.8,2435.7,3.61842]
[1728363911378,1.8906,2435.8,2435.7,3.2078]
[1728363911784,1.8906,2435.8,2435.7,3.61842]
[1728363911984,1.8906,2435.8,2435.7,3.2078]
[1728363913989,1.8906,2435.8,2435.7,3.61842]
[1728363914680,1.48,2435.8,2435.7,3.61842]
[1728363914988,1.48,2435.8,2435.7,3.2078]
[1728363915291,1.48,2435.8,2435.7,3.61842]
[1728363917388,1.48,2435.8,2435.7,0.41062]
[1728363918888,1.89061,2435.8,2435.6,0.41062]
[1728363919093,3.2078,2435.7,2435.6,0.41063]
[1728363919887,1.48,2435.8,2435.7,0.41062]
[1728363927690,1.8906,2435.8,2435.7,0.41062]
[1728363927890,0.41062,2435.7,2435.6,0.41063]
[1728363928095,2.30482,2435.7,2435.6,0.41063]
[1728363928285,1.8942,2435.7,2435.6,0.41063]
[1728363929103,2.30482,2435.7,2435.6,0.41063]
[1728363929401,1.8942,2435.7,2435.6,0.41063]
[1728363930206,2.30482,2435.7,2435.5,0.41063]
[1728363930399,1.48,2435.6,2435.5,0.41063]
[1728363931498,8.7934,2435.6,2435.2,0.096]
[1728363931721,1.48,2435.3,2435.0,0.5028]
[1728363931901,0.41068,2435.3,2435.2,0.4107]
[1728363932297,0.41068,2435.4,2435.2,0.4107]
[1728363932501,1.48,2435.3,2435.2,0.4107]
[1728363934507,0.4107,2435.2,2435.0,0.4068]
[1728363934807,1.48,2435.1,2435.0,0.81752]
[1728363935007,0.41074,2435.0,2434.9,0.41074]
[1728363935307,1.48,2435.1,2434.9,0.41074]
[1728363935308,1.89072,2435.1,2434.9,0.41074]
[1728363935500,1.48,2435.1,2434.9,0.41074]
[1728363935699,0.41073,2435.0,2434.9,0.41074]
[1728363936094,1.89073,2435.1,2434.9,0.41074]
[1728363936298,7.3142,2435.0,2434.8,0.41076]
[1728363936499,1.02693,2434.8,2434.4,0.096]
[1728363936699,0.41084,2434.4,2434.2,0.096]
[1728363937005,1.48,2434.3,2433.8,1.2987]
[1728363937207,3.2078,2434.1,2434.0,0.4109]
[1728363937707,4.6878,2434.1,2434.0,0.4109]
[1728363938198,4.6878,2434.1,2433.8,0.3887]
[1728363938199,0.41092,2433.9,2433.8,0.3887]
[1728363938399,8.7958,2434.1,2433.8,0.3887]
[1728363938400,3.2078,2434.1,2433.8,0.3887]
[1728363938600,3.2078,2434.1,2434.0,0.4109]
[1728363938799,6.4178,2434.1,2434.0,0.4109]
[1728363939606,3.2078,2434.1,2434.0,0.4109]
[1728363939997,6.4178,2434.1,2434.0,0.4109]
[1728363940612,3.21,2434.1,2434.0,4.5189]
[1728363940911,0.096,2434.6,2434.1,0.41089]
[1728363940912,3.21,2434.2,2434.1,0.41089]
[1728363941311,3.21,2434.2,2434.1,4.51889]
[1728363942111,3.21,2434.3,2433.8,0.4847]
[1728363942306,3.21,2434.1,2434.0,0.4109]
[1728363944604,3.21,2434.1,2434.0,4.5189]
[1728363946810,3.61865,2434.4,2434.3,0.41085]
[1728363946811,3.2078,2434.4,2434.3,0.41085]
[1728363947007,3.2078,2434.4,2434.3,4.51885]
[1728363953314,3.2078,2434.4,2434.3,0.41085]
[1728363958218,3.62081,2434.6,2434.5,0.41082]
[1728363958416,5.09861,2434.6,2434.5,0.41082]
[1728363958617,4.6878,2434.6,2434.5,0.41082]
[1728363958821,5.0986,2434.6,2434.5,0.41082]
[1728363959224,4.6878,2434.6,2434.5,0.41082]
[1728363960621,3.3038,2434.9,2434.5,5.99802]
[1728363960921,40.8,2435.7,2434.5,5.99802]
[1728363960922,4.7838,2435.2,2434.7,1.02697]
[1728363961122,0.41072,2435.1,2435.0,0.41073]
[1728363961617,4.6878,2435.2,2434.8,0.8016]
[1728363961927,1.48,2435.0,2434.9,0.41075]
[1728363962420,3.21,2435.1,2434.8,0.8016]
[1728363962622,3.21,2435.1,2435.0,0.41073]
[1728363962926,3.21,2435.1,2434.6,0.4871]
[1728363963121,3.62078,2434.7,2434.6,0.80189]
[1728363963821,3.21,2434.7,2434.6,0.80189]
[1728363964924,1.61414,2435.0,2434.6,0.80189]
[1728363964925,0.4017,2435.0,2434.6,4.4983]
[1728363965124,0.4017,2435.0,2434.9,0.41075]
[1728363972928,0.4017,2435.0,2434.8,0.8072]
[1728363972929,0.41076,2434.9,2434.8,0.41075]
[1728363973132,3.21,2434.9,2434.8,0.41077]
[1728363973333,3.62075,2434.9,2434.8,0.41077]
[1728363974629,3.21,2434.9,2434.8,0.41077]
[1728363975036,0.4017,2435.0,2434.9,0.41075]
[1728363975240,3.21,2435.0,2434.7,1.02697]
[1728363975437,3.21,2435.0,2434.9,0.41075]
[1728363982242,3.6229,2435.2,2435.1,0.41072]
[1728363983751,0.41072,2435.1,2435.0,0.82612]
[1728363984049,0.79702,2435.1,2435.0,0.82612]
[1728363984444,0.3863,2435.1,2435.0,0.82612]
[1728363985251,3.5941,2435.1,2434.8,0.80536]
[1728363985444,3.62075,2434.9,2434.8,0.41076]
[1728363985747,3.21,2434.9,2434.4,1.1231]
[1728363986051,0.41079,2434.7,2434.6,0.41079]
[1728363986237,3.21,2434.7,2434.3,0.8158]
[1728363986442,0.83241,2434.6,2434.5,0.41081]
[1728363987043,0.8324,2434.6,2434.5,0.41081]
[1728363987242,0.4216,2434.6,2434.5,0.41081]
[1728363987754,4.04242,2434.6,2434.4,0.41082]
[1728363988244,3.6316,2434.6,2434.5,0.41082]
[1728363988442,3.21,2434.6,2434.5,0.41082]
[1728363989050,3.21,2434.7,2434.6,0.4108]
[1728363991654,3.21,2434.7,2434.3,0.8158]
[1728363991851,3.21,2434.7,2434.6,0.4108]
[1728363992649,3.62078,2434.7,2434.6,0.4108]
[1728363992850,3.21,2434.7,2434.6,0.4108]
[1728363993055,3.21,2434.7,2434.3,0.8158]
[1728363993358,3.21,2434.5,2434.3,0.41084]
[1728363993655,0.41085,2434.3,2434.1,1.22797]
[1728363993855,3.62085,2434.3,2434.2,0.41087]
[1728363995154,0.41087,2434.2,2434.1,0.81008]
[1728363995351,3.21,2434.3,2434.1,0.3992]
[1728363995352,3.6386,2434.3,2434.1,0.3992]
[1728363995572,3.6386,2434.3,2434.2,0.41087]
[1728363995948,4.04945,2434.3,2434.2,0.41087]
[1728363998557,0.41087,2434.2,2434.1,0.81008]
[1728363999660,4.04946,2434.3,2434.2,0.41087]
[1728364000953,4.04946,2434.3,2434.1,0.3992]
[1728364000954,3.6386,2434.3,2434.1,0.81007]
[1728364001460,4.04947,2434.3,2434.1,0.81007]
[1728364002661,4.04947,2434.3,2434.1,0.3992]
[1728364002662,0.41087,2434.2,2434.1,0.3992]
[1728364003662,0.41087,2434.2,2434.1,0.81009]
[1728364004459,4.04946,2434.3,2434.1,0.81009]
[1728364005066,3.6386,2434.3,2434.1,0.3992]
[1728364005271,3.6386,2434.3,2434.2,0.41087]
[1728364005558,4.04945,2434.3,2434.2,0.41087]
[1728364005860,3.21,2434.3,2434.2,0.41087]
[1728364006163,0.41087,2434.2,2434.1,0.3992]
[1728364006358,0.4109,2434.1,2433.9,0.82881]
[1728364006556,4.03059,2434.1,2434.0,0.4109]
[1728364006779,0.4167,2434.0,2433.9,0.82881]
[1728364008367,3.21,2434.1,2434.0,0.4109]
[1728364008965,3.21,2434.1,2433.8,0.4199]
[1728364009166,3.21,2434.1,2434.0,0.4109]
[1728364009167,4.0339,2434.1,2434.0,0.4109]
[1728364011159,7.2417,2434.1,2434.0,0.4109]
[1728364011565,6.4178,2434.1,2434.0,0.4109]
[1728364011863,3.2078,2434.1,2434.0,0.4109]
[1728364012170,0.3976,2434.2,2434.1,0.41089]
[1728364012764,0.80847,2434.2,2434.1,0.41089]
[1728364012966,0.80847,2434.2,2434.0,0.41089]
[1728364012967,0.41089,2434.1,2434.0,0.41089]
[1728364013475,0.41091,2434.0,2433.9,0.41091]
[1728364013774,0.41091,2434.0,2433.8,0.4199]
[1728364013775,4.0269,2434.1,2433.8,0.4199]
[1728364013969,0.4109,2434.0,2433.9,0.41091]
[1728364014669,3.616,2434.1,2433.8,0.4199]
[1728364014869,3.616,2434.1,2433.8,0.83084]
[1728364014870,0.4247,2433.9,2433.8,0.83084]
[1728364015865,7.7435,2433.9,2433.8,0.41094]
[1728364016476,6.0135,2433.9,2433.8,0.41094]
[1728364017073,1.9047,2433.9,2433.8,0.41094]
[1728364020063,0.4247,2433.9,2433.8,0.41094]
[1728364020263,1.48,2434.0,2433.9,0.41092]
[1728364021563,1.48,2434.0,2433.7,0.8339]
[1728364021762,1.48,2433.8,2433.7,1.24485]
[1728364022565,1.8696,2433.8,2433.7,1.24485]
[1728364023078,2.28054,2433.8,2433.7,1.24485]
[1728364023274,0.41095,2433.7,2433.6,0.4171]
[1728364023472,4.1088,2433.7,2433.2,0.096]
[1728364023772,0.41104,2433.2,2433.1,3.2078]
[1728364024167,0.83454,2433.2,2433.1,3.2078]
[1728364024369,0.83454,2433.2,2433.1,0.41106]
[1728364024370,10.9509,2433.2,2433.1,0.41106]
[1728364024680,3.6335,2433.2,2433.1,0.41106]
[1728364025978,3.6085,2433.5,2432.8,5.02795]
[1728364025979,3.2078,2433.5,2432.8,5.02795]
[1728364026183,0.4075,2433.4,2433.3,0.41101]
[1728364027079,0.81851,2433.4,2433.2,0.81483]
[1728364027277,4.02851,2433.4,2433.2,0.81483]
[1728364027484,0.41103,2433.3,2433.1,0.41105]
[1728364027778,3.21,2433.2,2433.1,0.41105]
[1728364028280,4.42311,2433.4,2433.3,0.41102]
[1728364028479,3.6175,2433.4,2433.3,0.41102]
[1728364030582,3.21,2433.4,2433.3,0.41102]
[1728364030775,3.61879,2433.5,2433.1,0.41106]
[1728364030977,3.61879,2433.5,2433.3,0.41102]
[1728364031179,3.61879,2433.5,2433.4,0.411]
[1728364031380,3.61879,2433.5,2433.2,0.3922]
[1728364031577,3.61879,2433.5,2433.4,0.411]
[1728364031974,3.06344,2433.9,2433.4,0.411]
[1728364031975,3.2078,2434.1,2433.9,0.41092]
[1728364032173,3.2078,2434.2,2434.1,0.41087]
[1728364032382,0.81556,2434.3,2433.6,4.23522]
[1728364032682,0.4047,2434.3,2434.2,0.41087]
[1728364032982,3.62085,2434.4,2434.2,0.41087]
[1728364032983,3.21,2434.4,2434.2,0.41087]
[1728364033185,3.21,2434.4,2434.2,0.41086]
[1728364033186,3.62084,2434.4,2434.2,0.41086]
[1728364033376,3.21,2434.4,2433.9,0.3883]
[1728364033584,3.21,2434.4,2434.3,0.41085]
[1728364035987,3.21,2434.4,2434.0,0.4231]
[1728364036179,3.21,2434.2,2434.1,0.41087]
[1728364038195,3.21,2434.4,2434.3,0.41085]
[1728364038884,3.21,2434.4,2434.0,0.4231]
[1728364039084,3.21,2434.4,2434.3,0.41085]
[1728364039085,3.62084,2434.4,2434.3,0.41085]
[1728364041388,0.41085,2434.3,2434.2,0.41086]
[1728364042585,3.62085,2434.4,2434.2,0.41086]
[1728364042786,3.21,2434.4,2434.0,0.4231]
[1728364043084,0.41087,2434.3,2434.1,0.41088]
[1728364043290,0.41087,2434.3,2434.1,0.41087]
[1728364043790,0.3878,2434.2,2434.1,0.41087]
[1728364045786,0.41089,2434.1,2433.9,0.3883]
[1728364045990,0.82419,2434.1,2434.0,0.4109]
[1728364046192,0.82419,2434.1,2433.9,0.79921]
[1728364046387,3.21,2434.0,2433.8,0.41092]
[1728364046690,3.61872,2433.9,2433.8,0.41092]
[1728364046894,3.61872,2433.9,2433.7,0.3921]
[1728364047091,3.2078,2433.9,2433.8,0.41094]
[1728364047289,3.61873,2433.9,2433.8,0.41094]
[1728364047496,3.62092,2434.0,2433.8,0.41094]
[1728364047787,0.41092,2433.9,2433.8,0.41094]
[1728364047993,0.41092,2433.9,2433.7,0.41094]
[1728364048182,0.41092,2433.9,2433.8,0.41093]
[1728364048591,0.41092,2433.9,2433.6,0.4144]
[1728364048795,3.21,2434.0,2433.6,0.4144]
[1728364048984,3.62091,2434.0,2433.8,0.41092]
[1728364049390,0.41092,2433.9,2433.8,0.41092]
[1728364049585,3.62091,2434.0,2433.9,0.41092]
[1728364049991,7.72971,2434.0,2433.9,0.41092]
[1728364050799,7.72971,2434.0,2433.6,0.4144]
[1728364050990,0.41092,2433.9,2433.8,0.41093]
[1728364051805,0.41092,2433.9,2433.8,0.41094]
[1728364052696,3.21,2434.0,2433.6,0.4144]
[1728364052899,3.62091,2434.0,2433.9,0.41092]
[1728364053086,3.21,2434.0,2433.9,0.41092]
[1728364053596,3.6209,2434.0,2433.9,0.41092]
[1728364054187,0.41091,2434.0,2433.9,0.41092]
[1728364054700,0.82419,2434.1,2433.6,1.44182]
[1728364054899,0.8242,2434.1,2433.9,0.41091]
[1728364055197,0.8242,2434.1,2434.0,0.8036]
[1728364055698,0.8242,2434.1,2434.0,0.3927]
[1728364056596,0.41096,2433.7,2433.6,0.41097]
[1728364056803,3.21,2433.7,2433.4,0.4059]
[1728364057095,0.41099,2433.5,2433.4,0.8169]
[1728364057296,0.41099,2433.5,2433.4,0.411]
[1728364058000,4.83318,2433.6,2433.4,0.411]
[1728364058201,0.41099,2433.5,2433.4,0.411]
[1728364058401,3.21,2433.5,2433.2,0.8228]
[1728364058594,0.41102,2433.3,2433.2,0.82793]
[1728364058799,0.41102,2433.3,2433.2,0.41103]
[1728364059095,3.21,2433.5,2432.9,5.0198]
[1728364059309,0.41106,2433.1,2432.9,1.23388]
[1728364059698,0.83056,2433.1,2432.9,1.23388]
[1728364059903,0.4195,2433.1,2433.0,0.41107]
[1728364060401,0.83056,2433.1,2433.0,0.41107]
[1728364060601,4.94096,2433.1,2432.9,0.41107]
[1728364060793,0.83056,2433.1,2432.9,0.41107]
[1728364061592,0.83056,2433.1,2433.0,0.41107]
[1728364061896,0.4195,2433.1,2433.0,0.41107]
[1728364062605,4.02185,2433.2,2433.0,0.41107]
[1728364062799,3.62103,2433.3,2433.1,0.41105]
[1728364063801,0.41104,2433.2,2433.0,0.41106]
[1728364064002,3.62103,2433.3,2433.1,0.41106]
[1728364064396,0.4185,2433.4,2432.7,1.8218]
[1728364064602,0.4185,2433.4,2432.9,4.23553]
[1728364064996,0.82951,2433.4,2432.9,4.62953]
[1728364065198,0.4185,2433.4,2432.9,4.62953]
[1728364065500,0.4185,2433.4,2433.3,0.41102]
[1728364065999,0.41101,2433.4,2432.9,4.62953]
[1728364066199,7.2369,2433.5,2433.3,0.41102]
[1728364066402,0.411,2433.4,2433.3,0.41102]
[1728364066701,7.2369,2433.5,2433.3,0.41102]
[1728364067101,7.2369,2433.5,2433.4,0.4108]
[1728364067703,7.2369,2433.5,2433.4,0.8218]
[1728364067704,3.2078,2433.5,2433.4,0.8218]
[1728364069001,3.62096,2433.7,2433.5,0.41098]
[1728364069302,6.4178,2433.7,2433.6,0.41097]
[1728364069906,6.4178,2433.7,2433.4,0.4108]
[1728364070107,6.82876,2433.7,2433.5,0.41097]
[1728364070605,6.4178,2433.7,2433.4,0.4108]
[1728364070809,6.4178,2433.7,2433.6,0.41097]
[1728364071503,6.4178,2433.7,2433.4,0.4108]
[1728364071504,6.82877,2433.7,2433.5,0.41098]
[1728364072395,6.82877,2433.7,2433.4,0.799]
[1728364072600,6.82877,2433.7,2433.5,0.41099]
[1728364073702,3.62097,2433.7,2433.4,0.799]
[1728364073911,3.62097,2433.7,2433.6,0.41097]
[1728364074408,3.62095,2433.7,2433.6,0.41097]
[1728364075206,3.62095,2433.7,2433.5,0.41097]
[1728364075808,3.62095,2433.7,2433.4,0.799]
[1728364076005,3.62095,2433.7,2433.6,0.41097]
[1728364076316,3.62095,2433.7,2433.5,0.41097]
[1728364076610,3.62095,2433.7,2433.6,0.41097]
[1728364077402,3.21,2433.7,2433.2,0.4028]
[1728364077605,3.21,2433.5,2433.2,0.4028]
[1728364077803,6.4178,2433.7,2433.2,0.4028]
[1728364078004,6.82876,2433.7,2433.5,0.41098]
[1728364079614,6.82876,2433.7,2433.6,0.3981]
[1728364080317,0.41097,2433.6,2433.3,0.41102]
[1728364080512,3.21,2433.5,2433.2,0.4028]
[1728364080709,0.41106,2433.1,2433.0,0.3981]
[1728364080919,0.41107,2433.0,2432.9,0.397]
[1728364081517,0.83377,2433.0,2432.9,0.397]
[1728364082314,0.41109,2432.9,2432.8,0.4015]
[1728364082514,0.41111,2432.8,2432.7,0.41112]
[1728364082717,0.403,2432.9,2432.7,0.41112]
[1728364082916,0.41112,2432.8,2432.6,0.80813]
[1728364083118,0.41112,2432.8,2432.7,0.41112]
[1728364083315,3.613,2432.9,2432.6,0.397]
[1728364083611,0.41111,2432.8,2432.7,0.41112]
[1728364083817,3.613,2432.9,2432.6,0.397]
[1728364084019,0.41112,2432.7,2432.6,0.80813]
[1728364084319,3.21,2432.7,2432.3,0.096]
[1728364084512,0.3936,2432.6,2432.1,0.096]
[1728364084821,6.82892,2432.8,2432.6,0.41113]
[1728364085018,0.41114,2432.6,2432.5,0.41115]
[1728364085225,3.21,2432.8,2432.2,0.096]
[1728364085521,0.3936,2432.7,2432.6,0.41114]
[1728364085923,0.3936,2432.7,2432.2,0.096]
[1728364085924,4.504,2432.7,2432.2,0.096]
[1728364086120,3.21,2432.5,2432.4,0.41117]
[1728364087413,4.01473,2432.7,2432.6,0.41114]
[1728364087720,4.01473,2432.7,2432.5,0.41114]
[1728364087921,3.6036,2432.7,2432.0,1.84599]
[1728364088116,3.6036,2432.7,2432.6,0.41114]
[1728364089221,4.01472,2432.7,2432.6,0.41114]
[1728364089525,4.01472,2432.7,2432.2,1.02802]
[1728364089823,4.01472,2432.7,2432.5,0.41114]
[1728364090019,4.01472,2432.7,2432.2,1.02802]
[1728364090423,3.6036,2432.7,2432.6,0.41114]
[1728364090819,3.6036,2432.7,2432.0,1.84599]
[1728364090820,4.01473,2432.7,2432.5,0.41114]
[1728364091021,4.01473,2432.7,2432.2,1.02803]
[1728364091323,4.01473,2432.7,2432.6,0.41114]
[1728364091918,3.6036,2432.7,2432.6,0.41114]
[1728364093323,4.0255,2432.9,2432.3,1.02797]
[1728364093618,4.0255,2432.9,2432.8,0.41111]
[1728364095827,4.0255,2432.9,2432.5,0.427]
[1728364096018,4.4366,2432.9,2432.5,0.427]
[1728364096323,3.21,2432.7,2432.6,0.41114]
[1728364097516,3.62112,2432.7,2432.6,0.41114]
[1728364098733,3.21,2432.7,2432.6,0.41114]
[1728364099137,3.62112,2432.7,2432.6,0.41114]
[1728364099632,0.41114,2432.6,2432.5,0.41115]
[1728364099825,3.6174,2432.6,2432.5,0.41115]
[1728364102735,4.02854,2432.6,2432.5,0.41115]
[1728364103129,3.6174,2432.6,2432.5,0.41115]
[1728364104534,4.02854,2432.6,2432.5,0.41115]
[1728364104733,7.23634,2432.6,2432.5,0.41115]
[1728364105127,0.41116,2432.5,2432.1,0.096]
[1728364105336,6.82901,2432.2,2432.1,0.41122]
[1728364105536,6.4178,2432.2,2431.9,0.4005]
[1728364105731,4.0239,2432.1,2432.0,0.41124]
[1728364107826,4.43512,2432.1,2432.0,0.41124]
[1728364108337,4.43512,2432.1,2431.9,0.81174]
[1728364108530,0.41124,2432.0,2431.8,0.41127]
[1728364108730,3.5992,2431.9,2431.8,0.41127]
[1728364110535,0.41128,2431.8,2431.6,0.4113]
[1728364110746,3.21,2431.7,2431.6,0.4113]
[1728364110940,3.6275,2431.7,2431.4,0.4031]
[1728364111133,4.0388,2431.7,2431.5,0.41132]
[1728364111332,3.6275,2431.7,2431.4,0.4031]
[1728364111636,4.0388,2431.7,2431.5,0.41131]
[1728364112141,4.0388,2431.7,2431.4,0.4031]
[1728364112336,3.6275,2431.7,2431.5,0.41131]
[1728364112733,3.6275,2431.7,2431.6,0.41131]
[1728364113939,3.6275,2431.7,2431.4,0.4031]
[1728364113940,0.41131,2431.6,2431.2,0.096]
[1728364114135,3.6125,2431.6,2431.4,0.41133]
[1728364114341,3.62133,2431.5,2431.3,0.41135]
[1728364114541,3.6228,2431.4,2431.3,0.41135]
[1728364115241,4.03414,2431.4,2431.3,0.41136]
[1728364115543,3.6228,2431.4,2431.3,0.41136]
[1728364116044,3.21,2431.4,2431.3,0.41136]
[1728364118039,6.4178,2431.5,2431.4,0.41134]
[1728364119232,3.21,2431.5,2431.4,0.41134]
[1728364128749,0.4128,2431.8,2431.4,4.1128]
[1728364128953,0.096,2432.1,2432.0,0.41124]
[1728364129258,4.0356,2432.6,2432.0,1.02807]
[1728364129451,4.44674,2432.6,2432.5,0.41116]
[1728364129754,3.21,2432.6,2432.5,0.41116]
[1728364130549,3.21,2432.6,2432.5,4.52236]
[1728364130755,3.21,2432.6,2432.5,0.41116]
[1728364130948,3.21,2432.6,2432.5,4.52236]
[1728364131256,3.21,2432.6,2432.5,0.41116]
[1728364131852,3.21,2432.6,2432.5,4.52236]
[1728364132748,3.21,2432.6,2432.5,0.41116]
[1728364137549,3.6129,2432.6,2432.1,1.2117]
[1728364137753,3.21,2432.4,2432.3,0.41119]
[1728364138057,3.62117,2432.4,2432.3,0.41119]
[1728364138257,3.21,2432.4,2432.3,0.41119]
[1728364138561,3.62117,2432.4,2432.3,0.41119]
[1728364138760,3.21,2432.4,2432.3,0.41119]
[1728364140551,3.62117,2432.4,2432.3,0.41119]
[1728364140857,13.3212,2432.4,2431.8,0.096]
[1728364141061,3.21,2431.9,2431.8,0.41127]
[1728364141560,0.3883,2432.1,2432.0,0.41124]
[1728364141752,3.21,2432.3,2431.9,0.8063]
[1728364142062,3.21,2432.3,2432.2,0.41121]
[1728364142457,3.21,2432.3,2431.9,0.8063]
[1728364142670,3.21,2432.3,2432.2,0.41121]
[1728364142849,3.62119,2432.3,2432.2,0.41121]
[1728364143055,3.21,2432.3,2432.2,0.41121]
[1728364144156,3.62119,2432.3,2432.2,0.41121]
[1728364144460,3.21,2432.3,2432.2,0.41121]
[1728364146565,0.3876,2432.4,2431.9,4.0141]
[1728364146864,3.6171,2432.5,2431.9,4.0141]
[1728364147159,3.6171,2432.5,2432.4,0.41117]
[1728364147756,3.21,2432.5,2432.4,0.41117]
[1728364150657,3.21,2432.5,2431.9,5.13823]
[1728364150866,0.41118,2432.4,2432.3,0.41118]
[1728364151268,3.634,2432.5,2432.3,0.41118]
[1728364151560,3.21,2432.4,2431.9,4.1101]
[1728364151762,3.21,2432.1,2431.9,4.0141]
[1728364151962,3.21,2432.1,2431.9,0.4133]
[1728364152160,0.401,2432.0,2431.9,0.82456]
[1728364152357,3.21,2432.1,2432.0,0.41124]
[1728364154262,3.21,2432.1,2431.9,0.4133]
[1728364154472,0.3959,2432.0,2431.9,0.82456]
[1728364155357,0.3959,2432.0,2431.9,4.93656]
[1728364155556,0.3959,2432.0,2431.9,0.82456]
[1728364155766,0.3959,2432.0,2431.9,4.93656]
[1728364156066,0.3959,2432.0,2431.9,0.82456]
[1728364156366,0.3959,2432.0,2431.9,4.93656]
[1728364157367,0.3959,2432.0,2431.9,0.82456]
[1728364158660,0.3959,2432.0,2431.9,0.41126]
[1728364160762,0.80714,2432.0,2431.9,0.41126]
[1728364161560,0.3959,2432.0,2431.9,0.41126]
[1728364161762,0.80714,2432.0,2431.9,0.41126]
[1728364163870,0.3959,2432.0,2431.9,0.41126]
[1728364164465,0.80714,2432.0,2431.9,0.41126]
[1728364166070,0.3959,2432.0,2431.9,0.41126]
[1728364166272,6.4178,2432.2,2431.7,0.8035]
[1728364166467,0.41123,2432.1,2432.0,0.41124]
[1728364166964,0.41122,2432.1,2431.9,0.41125]
[1728364167470,6.4178,2432.2,2431.7,0.8035]
[1728364167766,3.62122,2432.2,2432.0,0.41122]
[1728364168371,1.8258,2432.3,2432.0,0.41122]
[1728364168568,1.89122,2432.1,2432.0,0.41122]
[1728364169472,0.41125,2432.0,2431.9,0.41125]
[1728364170063,1.89124,2432.1,2431.8,0.41127]
[1728364170367,0.41124,2432.0,2431.9,0.41124]
[1728364170756,1.48,2432.1,2431.7,0.8035]
[1728364170962,1.48,2432.1,2432.0,0.41124]
[1728364171465,1.89122,2432.1,2432.0,0.41124]
[1728364172474,1.48,2432.1,2432.0,0.41124]
[1728364172662,0.7978,2432.3,2432.2,0.41121]
[1728364172663,0.81219,2432.3,2432.2,0.41121]
[1728364174168,0.401,2432.3,2432.2,0.41121]
[1728364174766,0.81219,2432.3,2432.2,0.41121]
[1728364175570,0.401,2432.3,2432.2,0.41121]
[1728364176072,0.81219,2432.3,2432.2,0.41121]
[1728364179169,0.41119,2432.3,2432.2,0.41121]
[1728364180574,0.4133,2432.6,2432.1,0.8054]
[1728364180769,0.4133,2432.6,2432.1,1.83346]
[1728364180770,2.3022,2432.6,2432.1,1.83346]
[1728364180973,0.41117,2432.5,2432.4,0.41117]
[1728364182079,2.3022,2432.6,2432.4,0.41117]
[1728364182274,2.3022,2432.6,2432.1,1.83346]
[1728364182472,1.89118,2432.4,2432.3,0.41118]
[1728364184883,1.48,2432.4,2432.3,0.41118]
[1728364185577,1.89117,2432.4,2432.3,0.41118]
[1728364186777,1.48,2432.4,2432.3,0.41118]
[1728364188580,0.8222,2432.6,2432.5,0.41116]
[1728364189388,0.8222,2432.6,2432.5,0.82626]